[Event "Late-Titled-Tuesday-Blitz-September-12-2023"]
[Site "Chess.com"]
[Date "2023.09.12"]
[Round "9"]
[White "HansOnTwitch"]
[Black "Fandorine"]
[Result "1/2-1/2"]
[WhiteElo "3072"]
[BlackElo "2909"]
[TimeControl "180+1"]
[EndTime "15:41:03 PDT"]
[Termination "Game drawn by repetition"]

1. e4 {[%clk 0:02:57.3]} 1... e6 {[%clk 0:02:59]} 2. d4 {[%clk 0:02:45.5]} 2...
d5 {[%clk 0:02:59.2]} 3. Nc3 {[%clk 0:02:44.2]} 3... Nf6 {[%clk 0:02:59.4]} 4.
e5 {[%clk 0:02:44.2]} 4... Nfd7 {[%clk 0:02:59.4]} 5. f4 {[%clk 0:02:44.8]} 5...
c5 {[%clk 0:02:59.7]} 6. Nf3 {[%clk 0:02:45.5]} 6... Nc6 {[%clk 0:03:00.3]} 7.
Be3 {[%clk 0:02:45.8]} 7... Qb6 {[%clk 0:02:52]} 8. Na4 {[%clk 0:02:33.3]} 8...
Qa5+ {[%clk 0:02:52]} 9. c3 {[%clk 0:02:33.9]} 9... b6 {[%clk 0:02:52.7]} 10.
Bd2 {[%clk 0:02:12.6]} 10... c4 {[%clk 0:02:53.2]} 11. b4 {[%clk 0:01:29.8]}
11... Nxb4 {[%clk 0:02:52.9]} 12. cxb4 {[%clk 0:01:29.9]} 12... Bxb4 {[%clk
0:02:53.6]} 13. Bxb4 {[%clk 0:00:55.8]} 13... Qxb4+ {[%clk 0:02:52.8]} 14. Kf2
{[%clk 0:00:56.4]} 14... b5 {[%clk 0:02:28.9]} 15. Nc5 {[%clk 0:00:48.1]} 15...
Nxc5 {[%clk 0:02:29]} 16. dxc5 {[%clk 0:00:49]} 16... Qxc5+ {[%clk 0:02:29]} 17.
Qd4 {[%clk 0:00:48.9]} 17... Qxd4+ {[%clk 0:02:05.2]} 18. Nxd4 {[%clk
0:00:49.8]} 18... b4 {[%clk 0:01:47.4]} 19. a3 {[%clk 0:00:45.6]} 19... b3
{[%clk 0:01:45.3]} 20. Ke3 {[%clk 0:00:42.4]} 20... Bd7 {[%clk 0:01:43.3]} 21.
Kd2 {[%clk 0:00:41.1]} 21... Ke7 {[%clk 0:01:42.3]} 22. Kc3 {[%clk 0:00:39.3]}
22... Rab8 {[%clk 0:01:08.3]} 23. Re1 {[%clk 0:00:33.2]} 23... Rhc8 {[%clk
0:01:06.6]} 24. Be2 {[%clk 0:00:30.9]} 24... Rc5 {[%clk 0:01:02.9]} 25. Ra1
{[%clk 0:00:21.4]} 25... Ra5 {[%clk 0:00:56]} 26. Rhb1 {[%clk 0:00:15.9]} 26...
Rf8 {[%clk 0:00:52.7]} 27. Bf3 {[%clk 0:00:15.4]} 27... Rc5 {[%clk 0:00:49.7]}
28. Re1 {[%clk 0:00:15.1]} 28... a5 {[%clk 0:00:48.3]} 29. Re3 {[%clk
0:00:13.4]} 29... a4 {[%clk 0:00:44.7]} 30. g4 {[%clk 0:00:13.4]} 30... f6
{[%clk 0:00:32.5]} 31. f5 {[%clk 0:00:11.9]} 31... fxe5 {[%clk 0:00:20.4]} 32.
Rxe5 {[%clk 0:00:12.8]} 32... Kd6 {[%clk 0:00:20.8]} 33. Rae1 {[%clk 0:00:12.8]}
33... exf5 {[%clk 0:00:17.4]} 34. Nxf5+ {[%clk 0:00:06.8]} 34... Bxf5 {[%clk
0:00:14.8]} 35. gxf5 {[%clk 0:00:07.7]} 35... Rf6 {[%clk 0:00:06.2]} 36. Kd4
{[%clk 0:00:07.1]} 36... Rb5 {[%clk 0:00:06.7]} 37. Bxd5 {[%clk 0:00:05.9]}
37... b2 {[%clk 0:00:05.5]} 38. Rb1 {[%clk 0:00:06]} 38... c3 {[%clk 0:00:04.1]}
39. Re2 {[%clk 0:00:02.5]} 39... Rxd5+ {[%clk 0:00:04.2]} 40. Kxc3 {[%clk
0:00:03.3]} 40... Rfxf5 {[%clk 0:00:03.9]} 41. Rexb2 {[%clk 0:00:03.9]} 41...
Rf3+ {[%clk 0:00:04.1]} 42. Kc4 {[%clk 0:00:04.5]} 42... Rf4+ {[%clk 0:00:04.7]}
43. Kc3 {[%clk 0:00:04.7]} 43... Rc5+ {[%clk 0:00:05.2]} 44. Kd3 {[%clk
0:00:05.4]} 44... Kd5 {[%clk 0:00:05.7]} 45. Ke3 {[%clk 0:00:04.7]} 45... Re4+
{[%clk 0:00:06]} 46. Kf2 {[%clk 0:00:05.3]} 46... Rec4 {[%clk 0:00:05.4]} 47.
Rd2+ {[%clk 0:00:04.7]} 47... Ke5 {[%clk 0:00:05.9]} 48. Rb7 {[%clk 0:00:03.9]}
48... Rc7 {[%clk 0:00:06]} 49. Rb5+ {[%clk 0:00:03.3]} 49... Kf4 {[%clk
0:00:06.2]} 50. Rbd5 {[%clk 0:00:02.7]} 50... g6 {[%clk 0:00:06.3]} 51. R5d4+
{[%clk 0:00:02.4]} 51... Ke5 {[%clk 0:00:05.2]} 52. Rd5+ {[%clk 0:00:02.5]}
52... Kf6 {[%clk 0:00:05.7]} 53. Ra5 {[%clk 0:00:03.4]} 53... Kg7 {[%clk
0:00:04.4]} 54. Kg2 {[%clk 0:00:04]} 54... Kh6 {[%clk 0:00:04.7]} 55. Rf2 {[%clk
0:00:04.5]} 55... Re4 {[%clk 0:00:04.8]} 56. Kg3 {[%clk 0:00:04.4]} 56... Rc3+
{[%clk 0:00:05]} 57. Rf3 {[%clk 0:00:05.1]} 57... Ree3 {[%clk 0:00:04.9]} 58.
Rxe3 {[%clk 0:00:03.9]} 58... Rxe3+ {[%clk 0:00:05.8]} 59. Kg4 {[%clk
0:00:04.8]} 59... Rxa3 {[%clk 0:00:06.3]} 60. Ra7 {[%clk 0:00:05.1]} 60... Ra1
{[%clk 0:00:06.2]} 61. h4 {[%clk 0:00:05.8]} 61... a3 {[%clk 0:00:06.8]} 62. Kg3
{[%clk 0:00:06.4]} 62... Ra2 {[%clk 0:00:06.5]} 63. Kg4 {[%clk 0:00:06.6]} 63...
Rg2+ {[%clk 0:00:05.1]} 64. Kh3 {[%clk 0:00:06.9]} 64... Ra2 {[%clk 0:00:05]}
65. Kg3 {[%clk 0:00:07.6]} 65... Ra1 {[%clk 0:00:05]} 66. Kg2 {[%clk 0:00:07.6]}
66... a2 {[%clk 0:00:03.5]} 67. Kh2 {[%clk 0:00:05.7]} 67... Kh5 {[%clk
0:00:03.7]} 68. Rxh7+ {[%clk 0:00:05.6]} 68... Kg4 {[%clk 0:00:04.4]} 69. Ra7
{[%clk 0:00:06.5]} 69... Kxh4 {[%clk 0:00:04.6]} 70. Kg2 {[%clk 0:00:06.8]}
70... g5 {[%clk 0:00:05.3]} 71. Ra4+ {[%clk 0:00:07]} 71... Kh5 {[%clk
0:00:05.6]} 72. Ra8 {[%clk 0:00:07.9]} 72... Kg6 {[%clk 0:00:06.2]} 73. Ra6+
{[%clk 0:00:08]} 73... Kf5 {[%clk 0:00:06.6]} 74. Ra5+ {[%clk 0:00:08.8]} 74...
Ke4 {[%clk 0:00:07.3]} 75. Ra8 {[%clk 0:00:09.4]} 75... Kd3 {[%clk 0:00:07.6]}
76. Rd8+ {[%clk 0:00:09.5]} 76... Kc4 {[%clk 0:00:08.1]} 77. Rc8+ {[%clk
0:00:10.1]} 77... Kb4 {[%clk 0:00:08.4]} 78. Rb8+ {[%clk 0:00:10.3]} 78... Kc3
{[%clk 0:00:09.1]} 79. Rc8+ {[%clk 0:00:10.7]} 79... Kd4 {[%clk 0:00:09.6]} 80.
Rd8+ {[%clk 0:00:11.4]} 80... Ke5 {[%clk 0:00:10]} 81. Re8+ {[%clk 0:00:11.6]}
81... Kd6 {[%clk 0:00:10.5]} 82. Rd8+ {[%clk 0:00:11.4]} 82... Kc7 {[%clk
0:00:11]} 83. Ra8 {[%clk 0:00:12.3]} 83... Kb7 {[%clk 0:00:11.3]} 84. Ra3 {[%clk
0:00:12.5]} 84... g4 {[%clk 0:00:12.2]} 85. Ra4 {[%clk 0:00:12.7]} 85... g3
{[%clk 0:00:12.7]} 86. Ra3 {[%clk 0:00:12.4]} 86... Kb6 {[%clk 0:00:13.2]} 87.
Ra8 {[%clk 0:00:12.6]} 87... Kb5 {[%clk 0:00:13.7]} 88. Rb8+ {[%clk 0:00:13.1]}
88... Kc6 {[%clk 0:00:13.7]} 89. Ra8 {[%clk 0:00:13.5]} 89... Kb7 {[%clk
0:00:13.1]} 90. Ra3 {[%clk 0:00:13.4]} 90... Kb6 {[%clk 0:00:13.7]} 91. Ra4
{[%clk 0:00:13.8]} 91... Kb7 {[%clk 0:00:14.3]} 92. Ra3 {[%clk 0:00:13.9]}
1/2-1/2

[Event "Late-Titled-Tuesday-Blitz-September-12-2023"]
[Site "Chess.com"]
[Date "2023.09.12"]
[Round "9"]
[White "Nigerianprodigy"]
[Black "ChEsper99"]
[Result "1/2-1/2"]
[WhiteElo "2367"]
[BlackElo "2235"]
[TimeControl "180+1"]
[EndTime "15:41:07 PDT"]
[Termination "Game drawn by repetition"]

1. e4 {[%clk 0:03:00.1]} 1... c5 {[%clk 0:02:50.7]} 2. Nf3 {[%clk 0:02:55.7]}
2... d6 {[%clk 0:02:50]} 3. d4 {[%clk 0:02:56.3]} 3... cxd4 {[%clk 0:02:50.9]}
4. Nxd4 {[%clk 0:02:57.2]} 4... Nf6 {[%clk 0:02:51.3]} 5. Nc3 {[%clk 0:02:57.9]}
5... a6 {[%clk 0:02:51.9]} 6. h3 {[%clk 0:02:58.1]} 6... e5 {[%clk 0:02:51.1]}
7. Nb3 {[%clk 0:02:58.8]} 7... Be6 {[%clk 0:02:39.8]} 8. Be2 {[%clk 0:02:45.1]}
8... Be7 {[%clk 0:02:29.6]} 9. g4 {[%clk 0:02:43.6]} 9... d5 {[%clk 0:02:25.9]}
10. exd5 {[%clk 0:02:42.9]} 10... Nxd5 {[%clk 0:02:25.8]} 11. Nxd5 {[%clk
0:02:42.1]} 11... Qxd5 {[%clk 0:02:18.9]} 12. Bf3 {[%clk 0:02:41.1]} 12... Qxd1+
{[%clk 0:01:50.3]} 13. Bxd1 {[%clk 0:02:37.1]} 13... Bd5 {[%clk 0:01:38.8]} 14.
O-O {[%clk 0:02:34.9]} 14... Nc6 {[%clk 0:01:37.1]} 15. c3 {[%clk 0:02:34.6]}
15... O-O-O {[%clk 0:01:30.6]} 16. Be2 {[%clk 0:02:31.6]} 16... h5 {[%clk
0:01:24.1]} 17. Be3 {[%clk 0:02:16.7]} 17... Be6 {[%clk 0:01:01.2]} 18. Rfd1
{[%clk 0:02:10.8]} 18... hxg4 {[%clk 0:00:59.8]} 19. hxg4 {[%clk 0:02:08]} 19...
Rh4 {[%clk 0:00:53.3]} 20. Rxd8+ {[%clk 0:02:06]} 20... Kxd8 {[%clk 0:00:48.4]}
21. f3 {[%clk 0:02:01.9]} 21... f5 {[%clk 0:00:38.9]} 22. Nc5 {[%clk 0:01:47.9]}
22... Bxc5 {[%clk 0:00:34.8]} 23. Bxc5 {[%clk 0:01:46.1]} 23... fxg4 {[%clk
0:00:33]} 24. Rd1+ {[%clk 0:01:44]} 24... Kc7 {[%clk 0:00:19.7]} 25. Rd6 {[%clk
0:01:32.2]} 25... gxf3 {[%clk 0:00:17]} 26. Bxf3 {[%clk 0:01:30.1]} 26... Bg4
{[%clk 0:00:10]} 27. Bg2 {[%clk 0:01:21.5]} 27... Rh6 {[%clk 0:00:08.2]} 28.
Rxh6 {[%clk 0:01:14.8]} 28... gxh6 {[%clk 0:00:09.1]} 29. Bf8 {[%clk 0:01:14.4]}
29... h5 {[%clk 0:00:08.7]} 30. Kf2 {[%clk 0:01:13.3]} 30... Nd8 {[%clk
0:00:07.8]} 31. Ke3 {[%clk 0:01:07]} 31... Ne6 {[%clk 0:00:08]} 32. Bh6 {[%clk
0:01:03.8]} 32... Bf5 {[%clk 0:00:06.3]} 33. Bd5 {[%clk 0:00:59.7]} 33... h4
{[%clk 0:00:03.6]} 34. Kf3 {[%clk 0:00:55.8]} 34... h3 {[%clk 0:00:02.6]} 35.
Kg3 {[%clk 0:00:55.2]} 35... Kd6 {[%clk 0:00:02.8]} 36. Bxb7 {[%clk 0:00:54.7]}
36... a5 {[%clk 0:00:02.9]} 37. Be3 {[%clk 0:00:51.3]} 37... a4 {[%clk
0:00:02.9]} 38. b3 {[%clk 0:00:49.8]} 38... axb3 {[%clk 0:00:02.7]} 39. axb3
{[%clk 0:00:50.7]} 39... Bc2 {[%clk 0:00:03]} 40. b4 {[%clk 0:00:50.7]} 40...
Bf5 {[%clk 0:00:02.9]} 41. c4 {[%clk 0:00:49.3]} 41... Bd3 {[%clk 0:00:02.8]}
42. c5+ {[%clk 0:00:49]} 42... Kc7 {[%clk 0:00:03.2]} 43. Bd5 {[%clk 0:00:48.1]}
43... Nd4 {[%clk 0:00:02]} 44. Kxh3 {[%clk 0:00:40.5]} 44... Nc2 {[%clk
0:00:02.3]} 45. Bd2 {[%clk 0:00:39.7]} 45... Bb5 {[%clk 0:00:02]} 46. Kg4 {[%clk
0:00:39.3]} 46... Bc6 {[%clk 0:00:02.4]} 47. Be6 {[%clk 0:00:37]} 47... Be4
{[%clk 0:00:02.2]} 48. Kg5 {[%clk 0:00:36.6]} 48... Kc6 {[%clk 0:00:02.5]} 49.
Kf6 {[%clk 0:00:36.7]} 49... Bd5 {[%clk 0:00:01.7]} 50. Kxe5 {[%clk 0:00:36.3]}
50... Bxe6 {[%clk 0:00:01.8]} 51. Kxe6 {[%clk 0:00:37.2]} 51... Kb5 {[%clk
0:00:02.2]} 52. Kd7 {[%clk 0:00:36.8]} 52... Nd4 {[%clk 0:00:01.9]} 53. Bc3
{[%clk 0:00:35.3]} 53... Nc6 {[%clk 0:00:02.6]} 54. Kd6 {[%clk 0:00:35.3]} 54...
Na7 {[%clk 0:00:03]} 55. Kc7 {[%clk 0:00:34.5]} 55... Nc6 {[%clk 0:00:03.4]} 56.
Kb7 {[%clk 0:00:34.7]} 56... Nd8+ {[%clk 0:00:02.5]} 57. Kc8 {[%clk 0:00:32.3]}
57... Nc6 {[%clk 0:00:02.7]} 58. Be1 {[%clk 0:00:32.6]} 58... Na7+ {[%clk
0:00:02.1]} 59. Kb7 {[%clk 0:00:31]} 59... Nc6 {[%clk 0:00:02.3]} 60. Kc7 {[%clk
0:00:29]} 60... Na7 {[%clk 0:00:02.2]} 61. Kb7 {[%clk 0:00:26]} 61... Nc6 {[%clk
0:00:02.6]} 62. Bd2 {[%clk 0:00:26.2]} 62... Nd8+ {[%clk 0:00:02.6]} 63. Kc7
{[%clk 0:00:25.7]} 63... Nc6 {[%clk 0:00:02.6]} 64. Kd7 {[%clk 0:00:23.5]} 64...
Na7 {[%clk 0:00:02.8]} 65. Kd6 {[%clk 0:00:24]} 65... Nc6 {[%clk 0:00:03.2]} 66.
Kd5 {[%clk 0:00:24.5]} 66... Na7 {[%clk 0:00:03.5]} 67. Ke4 {[%clk 0:00:23]}
67... Nc6 {[%clk 0:00:04]} 68. Kd3 {[%clk 0:00:23.4]} 68... Na7 {[%clk
0:00:03.8]} 69. Kc2 {[%clk 0:00:23.4]} 69... Nc6 {[%clk 0:00:04.1]} 70. Kb3
{[%clk 0:00:23.6]} 70... Na7 {[%clk 0:00:03.9]} 71. Bg5 {[%clk 0:00:22.6]} 71...
Nc6 {[%clk 0:00:03.7]} 72. Bd2 {[%clk 0:00:21.5]} 72... Na7 {[%clk 0:00:03.9]}
73. Kc3 {[%clk 0:00:21.8]} 73... Nc6 {[%clk 0:00:04.3]} 74. Kd3 {[%clk
0:00:22.5]} 74... Na7 {[%clk 0:00:04.7]} 75. Ke4 {[%clk 0:00:23.2]} 75... Nc6
{[%clk 0:00:05.1]} 76. Kd5 {[%clk 0:00:23.8]} 76... Na7 {[%clk 0:00:05.6]} 77.
Kd6 {[%clk 0:00:23.1]} 77... Nc6 {[%clk 0:00:06]} 78. Kc7 {[%clk 0:00:19.7]}
78... Na7 {[%clk 0:00:04.8]} 79. Kd7 {[%clk 0:00:15.3]} 79... Nc6 {[%clk
0:00:05]} 80. Bc3 {[%clk 0:00:15]} 80... Na7 {[%clk 0:00:05]} 81. Kc7 {[%clk
0:00:15.2]} 81... Nc6 {[%clk 0:00:04.6]} 82. Kb7 {[%clk 0:00:13.9]} 82... Nd8+
{[%clk 0:00:04.2]} 83. Kc7 {[%clk 0:00:13.9]} 83... Nc6 {[%clk 0:00:04.4]}
1/2-1/2

[Event "Late-Titled-Tuesday-Blitz-September-12-2023"]
[Site "Chess.com"]
[Date "2023.09.12"]
[Round "10"]
[White "reevecanada"]
[Black "MajorCoast"]
[Result "1-0"]
[WhiteElo "2492"]
[BlackElo "2282"]
[TimeControl "180+1"]
[EndTime "15:44:14 PDT"]
[Termination "reevecanada won by resignation"]

1. e4 {[%clk 0:02:54.7]} 1... c6 {[%clk 0:02:59.7]} 2. c4 {[%clk 0:02:43.7]}
2... g6 {[%clk 0:03:00.6]} 3. Nc3 {[%clk 0:02:42.4]} 3... d5 {[%clk 0:03:01.1]}
4. cxd5 {[%clk 0:02:42.1]} 4... cxd5 {[%clk 0:03:01.4]} 5. Nxd5 {[%clk
0:02:41.5]} 5... Bg7 {[%clk 0:03:01.5]} 6. d4 {[%clk 0:02:39.2]} 6... Nc6 {[%clk
0:02:59.9]} 7. Be3 {[%clk 0:02:37.1]} 7... e6 {[%clk 0:03:00.2]} 8. Nc3 {[%clk
0:02:37.6]} 8... Nxd4 {[%clk 0:03:00.1]} 9. Bxd4 {[%clk 0:02:33.2]} 9... Qxd4
{[%clk 0:02:58.7]} 10. Bb5+ {[%clk 0:02:32.5]} 10... Bd7 {[%clk 0:02:55.7]} 11.
Qb3 {[%clk 0:02:33]} 11... Ne7 {[%clk 0:02:47.3]} 12. Rd1 {[%clk 0:02:31.9]} 1-0

[Event "Late-Titled-Tuesday-Blitz-September-12-2023"]
[Site "Chess.com"]
[Date "2023.09.12"]
[Round "10"]
[White "Vadim_Biliy"]
[Black "Defenstrator"]
[Result "0-1"]
[WhiteElo "2189"]
[BlackElo "2357"]
[TimeControl "180+1"]
[EndTime "15:46:22 PDT"]
[Termination "Defenstrator won by resignation"]

1. d4 {[%clk 0:03:00.9]} 1... d5 {[%clk 0:03:00.8]} 2. Nf3 {[%clk 0:03:00.8]}
2... Bf5 {[%clk 0:03:01.1]} 3. e3 {[%clk 0:03:01.3]} 3... Nc6 {[%clk 0:03:02]}
4. Bd3 {[%clk 0:03:00.4]} 4... Bxd3 {[%clk 0:02:59.6]} 5. cxd3 {[%clk
0:03:00.6]} 5... g6 {[%clk 0:02:57.6]} 6. O-O {[%clk 0:02:59.8]} 6... Bg7 {[%clk
0:02:58.3]} 7. b3 {[%clk 0:02:48.3]} 7... e5 {[%clk 0:02:58]} 8. dxe5 {[%clk
0:02:47.2]} 8... Nxe5 {[%clk 0:02:58.3]} 9. Nxe5 {[%clk 0:02:46.8]} 9... Bxe5
{[%clk 0:02:58.6]} 10. d4 {[%clk 0:02:46.3]} 10... Bg7 {[%clk 0:02:58.3]} 11.
Ba3 {[%clk 0:02:40.8]} 11... Ne7 {[%clk 0:02:55]} 12. Qf3 {[%clk 0:02:36.1]}
12... O-O {[%clk 0:02:53.8]} 13. Bxe7 {[%clk 0:02:34.4]} 13... Qxe7 {[%clk
0:02:54.3]} 14. Qxd5 {[%clk 0:02:34.6]} 14... c5 {[%clk 0:02:54.8]} 15. Rd1
{[%clk 0:02:13.3]} 15... cxd4 {[%clk 0:02:50.8]} 16. exd4 {[%clk 0:02:10.3]}
16... Rfd8 {[%clk 0:02:43.5]} 17. Qc4 {[%clk 0:02:02.3]} 17... Rac8 {[%clk
0:02:23.1]} 18. Qa4 {[%clk 0:01:58.3]} 18... Rxd4 {[%clk 0:02:18.7]} 0-1

[Event "Late-Titled-Tuesday-Blitz-September-12-2023"]
[Site "Chess.com"]
[Date "2023.09.12"]
[Round "10"]
[White "canary2016"]
[Black "FeketeBarika"]
[Result "0-1"]
[WhiteElo "2114"]
[BlackElo "2360"]
[TimeControl "180+1"]
[EndTime "15:46:50 PDT"]
[Termination "FeketeBarika won by resignation"]

1. d4 {[%clk 0:03:00.9]} 1... e6 {[%clk 0:02:55.9]} 2. c4 {[%clk 0:03:00.1]}
2... Nf6 {[%clk 0:02:56.2]} 3. Nc3 {[%clk 0:02:59.1]} 3... d5 {[%clk 0:02:56.7]}
4. Nf3 {[%clk 0:02:57.4]} 4... Be7 {[%clk 0:02:56.3]} 5. e3 {[%clk 0:02:55.2]}
5... O-O {[%clk 0:02:54.8]} 6. Qc2 {[%clk 0:02:54.6]} 6... c5 {[%clk 0:02:53.5]}
7. b3 {[%clk 0:02:53.4]} 7... dxc4 {[%clk 0:02:49.2]} 8. bxc4 {[%clk 0:02:52.5]}
8... Nc6 {[%clk 0:02:50.1]} 9. d5 {[%clk 0:02:46.2]} 9... exd5 {[%clk
0:02:49.3]} 10. cxd5 {[%clk 0:02:45.8]} 10... Nb4 {[%clk 0:02:49.4]} 11. Qb3
{[%clk 0:02:41.4]} 11... Nfxd5 {[%clk 0:02:46.9]} 12. Bc4 {[%clk 0:02:39]} 12...
Nxc3 {[%clk 0:02:44.6]} 13. Qxc3 {[%clk 0:02:38.5]} 13... Bf6 {[%clk 0:02:45.2]}
14. Qb3 {[%clk 0:02:08.8]} 14... Bxa1 {[%clk 0:02:41.4]} 15. O-O {[%clk
0:02:07.8]} 15... Bf6 {[%clk 0:02:41.6]} 16. Rd1 {[%clk 0:02:07.1]} 16... Qe7
{[%clk 0:02:40.6]} 17. Ba3 {[%clk 0:02:02.5]} 17... a5 {[%clk 0:02:39.5]} 18. h3
{[%clk 0:01:24.9]} 18... Bf5 {[%clk 0:02:29.7]} 19. Bb2 {[%clk 0:01:19.9]} 19...
a4 {[%clk 0:02:26.5]} 20. Qa3 {[%clk 0:01:12.9]} 20... Rfd8 {[%clk 0:02:10]} 21.
Rf1 {[%clk 0:01:09.8]} 21... Nc2 {[%clk 0:02:00.5]} 22. Bxf6 {[%clk 0:01:08.6]}
22... Qxf6 {[%clk 0:02:00.6]} 23. Qxc5 {[%clk 0:01:06.5]} 23... Rac8 {[%clk
0:02:01.2]} 24. Qb5 {[%clk 0:00:57.5]} 24... Na3 {[%clk 0:02:01.5]} 0-1

[Event "Late-Titled-Tuesday-Blitz-September-12-2023"]
[Site "Chess.com"]
[Date "2023.09.12"]
[Round "10"]
[White "tactic"]
[Black "laiciffOneslraCsungaM"]
[Result "1-0"]
[WhiteElo "2605"]
[BlackElo "2323"]
[TimeControl "180+1"]
[EndTime "15:47:01 PDT"]
[Termination "tactic won by resignation"]

1. e4 {[%clk 0:03:00.2]} 1... c5 {[%clk 0:02:56.2]} 2. c3 {[%clk 0:03:00.1]}
2... g6 {[%clk 0:02:54.7]} 3. d4 {[%clk 0:03:00]} 3... cxd4 {[%clk 0:02:55]} 4.
cxd4 {[%clk 0:03:00.9]} 4... d5 {[%clk 0:02:55.7]} 5. e5 {[%clk 0:03:00.5]} 5...
Bg7 {[%clk 0:02:56.6]} 6. Nf3 {[%clk 0:03:00.5]} 6... Nc6 {[%clk 0:02:57.3]} 7.
Bb5 {[%clk 0:03:00.9]} 7... Bg4 {[%clk 0:02:57.8]} 8. Bxc6+ {[%clk 0:03:01.4]}
8... bxc6 {[%clk 0:02:57.9]} 9. Nbd2 {[%clk 0:03:02.3]} 9... Nh6 {[%clk
0:02:56.6]} 10. h3 {[%clk 0:02:53.4]} 10... Bxf3 {[%clk 0:02:53.3]} 11. Nxf3
{[%clk 0:02:46.6]} 11... O-O {[%clk 0:02:54.2]} 12. Bxh6 {[%clk 0:02:40.5]}
12... Bxh6 {[%clk 0:02:52.6]} 13. O-O {[%clk 0:02:41.4]} 13... Qb6 {[%clk
0:02:51]} 14. Qc2 {[%clk 0:02:36.7]} 14... Rac8 {[%clk 0:02:45.8]} 15. Qb3
{[%clk 0:02:05.6]} 15... e6 {[%clk 0:02:32.8]} 16. Qxb6 {[%clk 0:01:49.3]} 16...
axb6 {[%clk 0:02:31.3]} 17. b4 {[%clk 0:01:46.5]} 17... c5 {[%clk 0:02:31.3]}
18. dxc5 {[%clk 0:01:44.8]} 18... bxc5 {[%clk 0:02:32.2]} 19. b5 {[%clk
0:01:45.4]} 19... Ra8 {[%clk 0:01:49.9]} 20. a4 {[%clk 0:01:38.7]} 20... c4
{[%clk 0:01:38.8]} 21. a5 {[%clk 0:01:35]} 21... c3 {[%clk 0:01:36]} 22. Nd4
{[%clk 0:01:35.2]} 22... Rfc8 {[%clk 0:01:33]} 23. b6 {[%clk 0:01:35.5]} 23...
Rc4 {[%clk 0:01:32.8]} 24. b7 {[%clk 0:01:31.3]} 24... Rb8 {[%clk 0:01:31.8]}
25. a6 {[%clk 0:01:31.5]} 1-0

[Event "Late-Titled-Tuesday-Blitz-September-12-2023"]
[Site "Chess.com"]
[Date "2023.09.12"]
[Round "10"]
[White "Vyacheslav_N"]
[Black "ferdipy"]
[Result "1-0"]
[WhiteElo "2484"]
[BlackElo "2289"]
[TimeControl "180+1"]
[EndTime "15:47:05 PDT"]
[Termination "Vyacheslav_N won by resignation"]

1. e4 {[%clk 0:03:00.9]} 1... e6 {[%clk 0:02:59.3]} 2. d4 {[%clk 0:02:55]} 2...
d5 {[%clk 0:03:00.2]} 3. Nc3 {[%clk 0:02:55]} 3... Bb4 {[%clk 0:02:58.8]} 4. Ne2
{[%clk 0:02:54]} 4... Nf6 {[%clk 0:02:58.5]} 5. e5 {[%clk 0:02:53.5]} 5... Nfd7
{[%clk 0:02:58.8]} 6. a3 {[%clk 0:02:53.1]} 6... Be7 {[%clk 0:02:58.6]} 7. Nb1
{[%clk 0:02:44.5]} 7... c5 {[%clk 0:02:58.2]} 8. c3 {[%clk 0:02:45.1]} 8... Nc6
{[%clk 0:02:57.4]} 9. f4 {[%clk 0:02:45]} 9... Qb6 {[%clk 0:02:38.4]} 10. b4
{[%clk 0:02:35.3]} 10... cxd4 {[%clk 0:02:36]} 11. cxd4 {[%clk 0:02:35.5]} 11...
a5 {[%clk 0:02:36.5]} 12. bxa5 {[%clk 0:02:31.6]} 12... Nxa5 {[%clk 0:02:31.1]}
13. Nbc3 {[%clk 0:02:28.6]} 13... Nc4 {[%clk 0:02:25.2]} 14. a4 {[%clk
0:02:14.8]} 14... O-O {[%clk 0:02:21.9]} 15. g3 {[%clk 0:02:12]} 15... f6 {[%clk
0:02:21.4]} 16. exf6 {[%clk 0:02:09.2]} 16... Bxf6 {[%clk 0:02:16.6]} 17. Bg2
{[%clk 0:02:05.3]} 17... e5 {[%clk 0:02:10.8]} 18. Bxd5+ {[%clk 0:02:04]} 18...
Kh8 {[%clk 0:02:11.3]} 19. Bxc4 {[%clk 0:02:03.5]} 19... exd4 {[%clk 0:02:11.8]}
20. Nd5 {[%clk 0:01:59.3]} 20... Re8 {[%clk 0:02:04.2]} 21. Nxb6 {[%clk
0:01:58]} 21... Nxb6 {[%clk 0:02:02.8]} 22. Bd3 {[%clk 0:01:57.6]} 22... Bg4
{[%clk 0:01:56.4]} 23. O-O {[%clk 0:01:55.7]} 23... Nd5 {[%clk 0:01:56.4]} 24.
Bd2 {[%clk 0:01:54.8]} 24... Re7 {[%clk 0:01:49.4]} 25. Re1 {[%clk 0:01:52]}
25... Rae8 {[%clk 0:01:48.7]} 26. Kf2 {[%clk 0:01:51.5]} 26... Ne3 {[%clk
0:01:35.9]} 27. Bxe3 {[%clk 0:01:51.1]} 27... dxe3+ {[%clk 0:01:35.9]} 28. Kg2
{[%clk 0:01:49.2]} 28... Bxa1 {[%clk 0:01:36.5]} 29. Qxa1 {[%clk 0:01:48.7]}
29... Rd8 {[%clk 0:01:37.2]} 30. Qc3 {[%clk 0:01:47.7]} 30... Red7 {[%clk
0:01:35.9]} 31. Bb5 {[%clk 0:01:47.7]} 31... Re7 {[%clk 0:01:32.1]} 32. h3
{[%clk 0:01:47.2]} 32... Bf5 {[%clk 0:01:30.4]} 33. Nd4 {[%clk 0:01:47]} 33...
Be4+ {[%clk 0:01:30.3]} 34. Kg1 {[%clk 0:01:46.5]} 34... Bd5 {[%clk 0:01:29.2]}
35. Rxe3 {[%clk 0:01:46.4]} 35... Rxe3 {[%clk 0:01:28.7]} 36. Qxe3 {[%clk
0:01:47.3]} 1-0

[Event "Late-Titled-Tuesday-Blitz-September-12-2023"]
[Site "Chess.com"]
[Date "2023.09.12"]
[Round "10"]
[White "diamonds13"]
[Black "PNEPaul"]
[Result "1-0"]
[WhiteElo "2339"]
[BlackElo "1924"]
[TimeControl "180+1"]
[EndTime "15:47:08 PDT"]
[Termination "diamonds13 won by resignation"]

1. d4 {[%clk 0:02:57.2]} 1... a6 {[%clk 0:02:59.6]} 2. c4 {[%clk 0:02:56.8]}
2... d6 {[%clk 0:02:59.9]} 3. Nc3 {[%clk 0:02:56.2]} 3... g6 {[%clk 0:03:00.2]}
4. e4 {[%clk 0:02:56.5]} 4... Bg7 {[%clk 0:03:00.2]} 5. f4 {[%clk 0:02:57.2]}
5... h6 {[%clk 0:02:59.4]} 6. Nf3 {[%clk 0:02:57.4]} 6... e6 {[%clk 0:02:59.6]}
7. Be2 {[%clk 0:02:55.2]} 7... Nd7 {[%clk 0:02:59.7]} 8. O-O {[%clk 0:02:55.3]}
8... Ne7 {[%clk 0:02:59.7]} 9. f5 {[%clk 0:02:53.4]} 9... O-O {[%clk 0:02:58]}
10. g4 {[%clk 0:02:47.9]} 10... exf5 {[%clk 0:02:54.3]} 11. gxf5 {[%clk
0:02:47.4]} 11... c6 {[%clk 0:02:49.4]} 12. Qe1 {[%clk 0:02:41.5]} 12... d5
{[%clk 0:02:45]} 13. cxd5 {[%clk 0:02:37.6]} 13... cxd5 {[%clk 0:02:44.1]} 14.
fxg6 {[%clk 0:02:32.8]} 14... fxg6 {[%clk 0:02:42.3]} 15. Nxd5 {[%clk
0:02:26.9]} 15... Nxd5 {[%clk 0:02:41.9]} 16. exd5 {[%clk 0:02:26.9]} 16... Qb6
{[%clk 0:02:40]} 17. Bd3 {[%clk 0:02:23.2]} 17... Bxd4+ {[%clk 0:02:35.6]} 18.
Kh1 {[%clk 0:02:19.4]} 18... Bg7 {[%clk 0:02:34.7]} 19. Qe6+ {[%clk 0:01:45.6]}
19... Qxe6 {[%clk 0:02:32.1]} 20. dxe6 {[%clk 0:01:45.9]} 20... Nc5 {[%clk
0:02:30]} 21. e7 {[%clk 0:01:42.1]} 21... Re8 {[%clk 0:02:23.4]} 22. Bxg6 {[%clk
0:01:36.4]} 22... Rxe7 {[%clk 0:02:19.4]} 23. Bf4 {[%clk 0:01:22.4]} 23... Bh3
{[%clk 0:02:15.6]} 24. Rg1 {[%clk 0:01:12.7]} 24... Ne6 {[%clk 0:01:56.1]} 25.
Bd6 {[%clk 0:01:08.5]} 25... Rd7 {[%clk 0:01:55.2]} 26. Be5 {[%clk 0:01:07.5]}
26... Rd3 {[%clk 0:01:45.4]} 27. Bxd3 {[%clk 0:01:02.2]} 1-0